Cogmind - Beta 13 @@@ ROGUE MODE // 2024.04.25 @ 14:33:59 Player: sick0r Result: Destroyed by G-47 Trooper with Particle Gun Performance ------------- Evolutions (3) 1500 Regions Visited (6) 1200 Robots Destroyed (136) 680 Value Destroyed (4638) 4638 Prototype IDs (4) 80 Alien Tech Used (0) 0 Bonus (488) 488 TOTAL SCORE: 8586 Bonus ------- High Alert Combat Kills 489 Follower Combat Kills 153 Friendly Fire -154 Cogmind --------- Core Integrity 0/700 Matter 290/300 Energy 40/275 System Corruption 17% Temperature Cool (18) Movement Rolling (135) Ox3 Location -7/Factory Parts ------- > --- POWER (1) -------- Deuterium Engine > --- PROPULSION (4) --- Wheel Armored Huge Wheel > --- UTILITY (5) ------ Huge Storage Unit Microactuators Actuator Array Actuator Array Improved Medium Armor Plating > --- WEAPON (3) ------- Powered Hammer Chainsword Spear > --- INVENTORY (25) --- Light Angular Momentum Engine Advanced Heat Sink Coolant Injector Huge Storage Unit High-capacity Matter Pod (200) Improved Signal Interpreter Improved Melee Analysis Suite Improved Melee Analysis Suite System Shield Gauss Rifle Advanced Assault Cannon Mini Assault Cannon Mini Assault Cannon Proton Missile Launcher Proton Missile Launcher Chainsword Great Axe Great Axe Great Axe Peak State ------------ > --- POWER ------------ Light Deuterium Engine > --- PROPULSION ------- Armored Huge Wheel Armored Huge Wheel > --- UTILITY ---------- Huge Storage Unit Microactuators Actuator Array Actuator Array Improved Light Armor Plating > --- WEAPON ----------- Mini Assault Cannon Powered Hammer Chainsword > --- INVENTORY -------- Deuterium Engine Light Angular Momentum Engine Wheel Armored Huge Wheel Advanced Heat Sink Coolant Injector Huge Storage Unit High-capacity Matter Pod Improved Signal Interpreter Improved Melee Analysis Suite Improved Melee Analysis Suite Microactuators Improved Medium Armor Plating System Shield Gauss Rifle Advanced Assault Cannon Mini Assault Cannon Proton Missile Launcher Proton Missile Launcher Chainsword Great Axe Great Axe Great Axe Spear [Rating: 55] Favorites ----------- Power Improved Ion Engine Engine Improved Ion Engine Power Core Light Nuclear Core Propulsion Armored Huge Wheel Treads Light Treads Leg Aluminum Leg Wheel Armored Huge Wheel Utility Huge Storage Unit Device Actuator Array Storage Huge Storage Unit Processor Advanced Targeting Computer Hackware Hacking Suite Protection Core Shielding Weapon Assault Rifle Energy Gun Heavy Laser Energy Cannon Particle Cannon Ballistic Gun Assault Rifle Ballistic Cannon Gauss Cannon Launcher Mini Grenade Launcher Special Weapon Mining Laser Impact Weapon Powered Hammer Slashing Weapon Chainsword Piercing Weapon Spear Build | -11 -10 -10 -10 -9 -8 -7 ------- Run | Yrd Mat Min Exi Min Mat Fac Slots Evolved 6 | . . . . . 4 2 Power . | . . . . . . . Propulsion 2 | . . . . . 2 . Utility 3 | . . . . . 2 1 Weapon 1 | . . . . . . 1 Parts Attached 108 | 6 12 6 1 . 38 45 Power 14 | 1 1 1 . . 5 6 Engine 10 | 1 1 1 . . 3 4 Core 4 | . . . . . 2 2 Reactor . | . . . . . . . Propulsion 32 | 2 6 2 1 . 12 9 Treads 6 | . 2 . . . 4 . Leg 3 | 2 1 . . . . . Wheel 23 | . 3 2 1 . 8 9 Hover . | . . . . . . . Flight . | . . . . . . . Utility 29 | 1 3 . . . 8 17 Device 9 | . . . . . 2 7 Storage 5 | 1 2 . . . 1 1 Processor 2 | . . . . . 2 . Hackware 3 | . 1 . . . . 2 Protection 10 | . . . . . 3 7 Artifact . | . . . . . . . Weapon 33 | 2 2 3 . . 13 13 Energy Gun 2 | . . . . . 1 1 Energy Cannon 1 | . . 1 . . . . Ballistic Gun 9 | 2 2 . . . 3 2 Ballistic Cannon 10 | . . . . . 6 4 Launcher 4 | . . 1 . . 2 1 Special Weapon 1 | . . 1 . . . . Impact Weapon 2 | . . . . . 1 1 Slashing Weapon 2 | . . . . . . 2 Piercing Weapon 2 | . . . . . . 2 Special Melee Weapon . | . . . . . . . Unidentified Prototypes 4 | . . . . . 2 2 Parts Lost 33 | . 3 1 . . 7 22 Power 6 | . . 1 . . 2 3 Propulsion 10 | . 1 . . . 3 6 Utility 11 | . . . . . 2 9 Weapon 6 | . 2 . . . . 4 Highest Loss Streak 7 | . 3 1 . . 3 7 To Critical Strikes 1 | . . . . . . 1 Average Slot Usage (%) 92 | . 97 100 100 100 92 83 Engine 9 | . 14 14 14 14 4 6 Core 1 | . . . . . 4 . Treads 5 | . 13 . . . 12 . Leg 2 | . 9 . . . . . Wheel 16 | . 5 28 28 28 16 15 Device 5 | . . . . . 7 11 Storage 10 | . 14 14 14 14 9 7 Processor 3 | . . . . . 9 4 Hackware 9 | . 12 14 14 14 9 5 Protection 2 | . . . . . 1 6 Energy Gun 1 | . . . . . 1 2 Energy Cannon 3 | . . 3 14 14 4 . Ballistic Gun 9 | . 27 15 . . 6 4 Ballistic Cannon 3 | . . . . . 5 7 Launcher 3 | . . 2 14 14 . . Naked Turns . | . . . . . . . Heaviest Build 116 | 12 90 93 92 92 102 116 Greatest Support 60 | 20 40 26 28 28 60 56 Greatest Overweight (x) 7 | . 3 3 3 3 7 3 Average Overweight (x) 1 | . 1 3 3 3 1 1 Largest Inventory Capacity 25 | 8 25 25 25 25 25 25 Average Capacity 23 | 7 19 25 25 25 25 25 Most Carried 25 | 7 20 25 25 25 25 25 Average Carried 21 | 5 14 22 24 24 24 23 Final Capacity 25 | 8 25 25 25 25 25 25 Final Carried 25 | 5 20 24 25 24 25 19 Class Distribution -------------------- 64% | Mutant 15% | Gunner 10% | Gladiator 4% | Scavenger-Mutant 4% | Scavenger-Gunner Dominant Class ---------------- Mutant | -10/Materials Mutant | -10/Mines Mutant | -10/Exiles Mutant | -9/Mines Mutant | -8/Materials Gunner | -7/Factory Resources | -11 -10 -10 -10 -9 -8 -7 ----------- Run | Yrd Mat Min Exi Min Mat Fac Matter Collected 3652 | 204 497 105 112 30 1063 1641 Remotely . | . . . . . . . Salvage Created 5274 | . 407 126 26 153 1500 3062 Parts 252 | . 28 7 . 7 83 127 Haulers Intercepted 1 | . . . . . 1 . Recyclers Shooed 2 | . . . . . . 2 Parts Field Recycled . | . . . . . . . Retrieved Matter . | . . . . . . . Parts Self-Destructed . | . . . . . . . Prevented . | . . . . . . . Kills | -11 -10 -10 -10 -9 -8 -7 ------- Run | Yrd Mat Min Exi Min Mat Fac Combat Hostiles Destroyed 105 | . 12 4 . 2 32 55 Melee 15 | . . . . . . 15 Guns 32 | . 12 . . . 12 8 Cannons 38 | . . 2 . 1 15 20 AOE 7 | . . 2 . 1 4 . Classes Destroyed 13 | . 5 1 . 2 4 1 Worker 7 | . 1 . . . . 6 Builder 6 | . . . . . 2 4 Hauler 1 | . . . . . 1 . Recycler 9 | . . . . 1 1 7 Operator 3 | . 1 . . . 1 1 Watcher 10 | . 2 . . . 4 4 Swarmer 20 | . 5 2 . . 6 7 Grunt 57 | . 7 . . 2 18 30 Brawler 3 | . . . . 1 . 2 Duelist 1 | . . . . . 1 . Sentry 14 | . . 2 . . 6 6 Hunter 4 | . . . . . 1 3 Programmer 7 | . . . . . . 7 Best Kill Streak 12 | . 4 2 . 2 6 12 Combat Bots Only 7 | . 4 2 . 1 5 7 Max Kills in Single Turn 2 | . 1 2 . 2 2 1 Gunslinging . | . . . . . . . Exploded 2 | . . 1 . 1 2 . Melee 1 | . . . . . . 1 Uniques/NPCs Destroyed . | . . . . . . . Combat | -11 -10 -10 -10 -9 -8 -7 -------- Run | Yrd Mat Min Exi Min Mat Fac Hostile Shots Fired 842 | . 118 12 . 1 200 511 Missed 230 | . 30 5 . 1 45 149 Damage Taken 7989 | . 896 71 . 28 2315 4679 Core 1343 | . 187 15 . 14 421 706 Absorbed by Shields 64 | . . . . . . 64 Redirected to Shielding 36 | . . . . . . 36 Core Remaining (%) 45 | 100 . . . 13 23 . Volleys Fired 271 | . 56 6 1 6 109 93 Largest 3 | . 2 2 1 2 2 3 Hottest 165 | . 40 100 30 98 101 165 Shots Fired 583 | . 102 9 1 9 211 251 Gun 313 | . 102 1 . . 97 113 Cannon 251 | . . 3 . 6 107 135 Launcher 16 | . . 2 1 3 7 3 Special 3 | . . 3 . . . . Kinetic 451 | . 102 1 . . 143 205 Thermal 116 | . . 6 . 6 61 43 Explosive 10 | . . 2 1 3 4 . Electromagnetic 6 | . . . . . 3 3 Robot Hit Streak 18 | . 11 2 . 4 13 18 Robot Miss Streak 9 | . 5 3 1 3 5 9 Penetration Max 1 | . . . . . 1 1 Secondary Targets 3 | . 1 . . . 1 1 Max Gunslinging Chain 1 | . 1 . . . 1 1 Shots Hit Robots 462 | . 63 2 . 5 135 257 Core Hits 193 | . 26 5 4 6 63 89 Critical Kills 2 | . . . . . . 2 Critical Parts Destroyed 15 | . . . . . . 15 Critical Strikes 30 | . . . . . 2 28 Burn 1 | . . . . . . 1 Destroy 2 | . . . . . . 2 Blast 7 | . . . . . 2 5 Smash 15 | . . . . . . 15 Sever 2 | . . . . . . 2 Impale 3 | . . . . . . 3 Melee Attacks 155 | . . . . . 3 152 Impact 103 | . . . . . 3 100 Slashing 26 | . . . . . . 26 Piercing 26 | . . . . . . 26 Sneak Attacks 7 | . . . . . . 7 Combat Hostiles . | . . . . . . . Follow-up Attacks 36 | . . . . . . 36 Damage Inflicted 13391 | . 845 138 213 347 3672 8176 Guns 3582 | . 845 . . . 1248 1489 Cannons 4512 | . . 41 . 103 1858 2510 Explosions 1147 | . . 97 213 244 566 27 Melee 4150 | . . . . . . 4150 Ramming . | . . . . . . . Kinetic 6516 | . 845 . . . 2228 3443 Thermal 1617 | . . 41 . 103 917 556 Explosive 955 | . . 97 213 244 401 . Electromagnetic 153 | . . . . . 126 27 Impact 3157 | . . . . . . 3157 Slashing 445 | . . . . . . 445 Piercing 548 | . . . . . . 548 Highest Corruption 17 | . . . . . . 17 Average Corruption 6 | . . . . . . 6 Corruption Purged . | . . . . . . . Corruption Blocked . | . . . . . . . Effects 79 | . . . . . . 79 Message Errors 22 | . . . . . . 22 Matter Fused 20 | . . . . . . 20 Heat Flow Errors 7 | . . . . . . 7 Energy Discharges 11 | . . . . . . 11 Parts Rejected 1 | . . . . . . 1 Data Loss (minor) 9 | . . . . . . 9 Data Loss (major) 3 | . . . . . . 3 Misfires 1 | . . . . . . 1 Alerts 2 | . . . . . . 2 Weapon Failures 3 | . . . . . . 3 Overload Shots . | . . . . . . . Overflow Damage 909 | . . . . 4 58 847 Projectiles 130 | . . . . . 49 81 Explosions 13 | . . . . 4 9 . Melee 766 | . . . . . . 766 Knockbacks 57 | . . . . . 16 41 Impact 17 | . . . . . . 17 Kinetic 33 | . . . . . 14 19 Secondary 7 | . . . . . 2 5 Self-Inflicted Damage 28 | . . . . 28 . . Shots 1 | . . . . 1 . . Rammed . | . . . . . . . Targets Rammed . | . . . . . . . Kicked . | . . . . . . . Crushed . | . . . . . . . Highest Temperature 353 | . 40 72 . 78 353 295 Average Temperature 79 | . 5 28 . 36 136 65 Received Heat Transfer 3236 | . 333 36 . . 1089 1778 Effects 2 | . . . . . 2 . Energy Bleed 1 | . . . . . 1 . Damage (minor) 1 | . . . . . 1 . Siege Activations . | . . . . . . . Robots Corrupted . | . . . . . . . Combat Hostiles . | . . . . . . . Parts Fried 13 | . . . . . . 13 Impact Corruptions 28 | . . . . . . 28 Robots Melted . | . . . . . . . Combat Hostiles . | . . . . . . . Parts Melted 2 | . . . . . 2 . Heat Transferred 3010 | . . 74 . 185 1678 1073 Parts Sabotaged . | . . . . . . . Parts Stolen . | . . . . . . . Parts Stripped . | . . . . . . . Power Chain Reactions 3 | . . . . . 3 . Alert | -11 -10 -10 -10 -9 -8 -7 ------- Run | Yrd Mat Min Exi Min Mat Fac Peak Influence 1101 | . 117 115 . 170 295 1101 Initial 112 | . . . . . . 112 Average 166 | . 39 21 . 11 125 366 Maximum Alert Level 4 | . . . . . 1 4 Low Security (%) 69 | 100 100 100 . 100 74 27 Level 1 20 | . . . . . 25 41 Level 2 4 | . . . . . . 12 Level 3 6 | . . . . . . 18 Level 4 . | . . . . . . . Level 5 . | . . . . . . . High Security . | . . . . . . . Max Security . | . . . . . . . Squads Dispatched 32 | . 4 1 . . 5 22 Investigation 11 | . 3 1 . . 1 6 Extermination 6 | . . . . . . 6 Reinforcement 9 | . 1 . . . 4 4 Assault 4 | . . . . . . 4 Garrison 2 | . . . . . . 2 Intercept . | . . . . . . . Searches Triggered . | . . . . . . . Construction Impeded 4 | . . . . . 1 3 Haulers Reinforced . | . . . . . . . Active Scanning Responses . | . . . . . . . Cargo Convoy Interrupts . | . . . . . . . Stealth | -11 -10 -10 -10 -9 -8 -7 --------- Run | Yrd Mat Min Exi Min Mat Fac Distress Signals 8 | . 2 . . . 1 5 Communications Jammed . | . . . . . . . Distress Signals . | . . . . . . . Times Spotted 178 | . 24 5 . 5 50 94 Peak Tracking Total 9 | . 6 3 . 3 8 9 Tactical Retreats 8 | . 2 . . . 2 4 Traps | -11 -10 -10 -10 -9 -8 -7 ------- Run | Yrd Mat Min Exi Min Mat Fac Traps Triggered 5 | . 2 . . . 2 1 Indirectly 1 | . . . . . . 1 Trap Hack Attempts . | . . . . . . . Triggered . | . . . . . . . Disarmed . | . . . . . . . Reprogrammed . | . . . . . . . Reused . | . . . . . . . Traps Extracted . | . . . . . . . Installed . | . . . . . . . Triggered . | . . . . . . . Machines | -11 -10 -10 -10 -9 -8 -7 ---------- Run | Yrd Mat Min Exi Min Mat Fac Machines Disabled 9 | . . 2 1 . 3 3 Max in Single Turn 2 | . . 2 1 . 1 1 Garrison Access 1 | . . . . . . 1 Machines Repaired . | . . . . . . . Machines Dismantled . | . . . . . . . Machines Sabotaged . | . . . . . . . Overloaded Fab Kills . | . . . . . . . Hacking | -11 -10 -10 -10 -9 -8 -7 --------- Run | Yrd Mat Min Exi Min Mat Fac Machines Accessed 32 | . 8 1 2 1 8 12 Terminals 18 | . 7 . . . 7 4 Fabricators 4 | . . . . . . 4 Repair Stations 1 | . 1 . . . . . Recycling Units 1 | . . . . . . 1 Scanalyzers 3 | . . . . . 1 2 Garrison Access 1 | . . . . . . 1 Total Hacks 101 | . 16 1 24 1 27 32 Successful 63 | . 7 1 24 1 12 18 Failed 38 | . 9 . . . 15 14 Catastrophic 13 | . 4 . . . 3 6 Database Lockouts . | . . . . . . . Manual 23 | . 11 . . . 10 2 Terminals 42 | . 14 . . . 18 10 Fabricators 8 | . . . . . . 8 Repair Stations 2 | . 2 . . . . . Recycling Units 2 | . . . . . . 2 Scanalyzers 18 | . . . . . 9 9 Garrison Access 3 | . . . . . . 3 Terminal Hacks 39 | . 6 1 24 1 3 4 Record 24 | . . . 24 . . . Part Schematic 2 | . . . . . . 2 Robot Schematic 1 | . . . . . . 1 Open Door 2 | . . 1 . 1 . . Unreport Threat 5 | . 1 . . . 3 1 Locate Traps 2 | . 2 . . . . . Recall Investigation 2 | . 2 . . . . . Zone Layout 1 | . 1 . . . . . Fabricator Hacks 6 | . . . . . . 6 Load Schematic 3 | . . . . . . 3 Build 3 | . . . . . . 3 Repair Station Hacks 1 | . 1 . . . . . Scan Component 1 | . 1 . . . . . Recycling Unit Hacks . | . . . . . . . Scanalyzer 17 | . . . . . 9 8 Insert Component 9 | . . . . . 5 4 Analyze 8 | . . . . . 4 4 Garrison Access Hacks . | . . . . . . . Unauthorized Hacks . | . . . . . . . Terminals . | . . . . . . . Fabricators . | . . . . . . . Repair Stations . | . . . . . . . Recycling Units . | . . . . . . . Scanalyzers . | . . . . . . . Garrison Access . | . . . . . . . Data Cores Recovered . | . . . . . . . Used . | . . . . . . . Hacking Detections 25 | . 6 . . . 7 12 Full Trace Events 7 | . 1 . . . . 6 Feedback Events . | . . . . . . . Feedback Blocked . | . . . . . . . Robot Schematics Acquired 1 | . . . . . . 1 Robots Built . | . . . . . . . Authchips . | . . . . . . . Time . | . . . . . . . Total Robot Build Rating . | . . . . . . . Part Schematics Acquired 10 | . . . . . 4 6 Parts Built 5 | . . . . . . 5 Authchips . | . . . . . . . Time 199 | . . . . . . 199 Total Part Build Rating 19 | . . . . . . 19 Parts Repaired . | . . . . . . . Time . | . . . . . . . Parts Recycled . | . . . . . . . Recycled Matter . | . . . . . . . Retrieved Matter . | . . . . . . . Retrieved Components . | . . . . . . . Parts Scanalyzed 8 | . . . . . 4 4 Part Schematics Acquired 8 | . . . . . 4 4 Parts Damaged . | . . . . . . . Bothacking | -11 -10 -10 -10 -9 -8 -7 ------------ Run | Yrd Mat Min Exi Min Mat Fac Used RIF Installer . | . . . . . . . Robots Hacked . | . . . . . . . Non-combat . | . . . . . . . Combat . | . . . . . . . Robot Hacks Applied . | . . . . . . . Relay Couplers Released 2 | . . . . . . 2 Machine Destruction 2 | . . . . . . 2 Fabnet Peak Effective % . | . . . . . . . Robots Rewired 4 | . . . 3 . . 1 Allies Hacked . | . . . . . . . Hacks Repelled . | . . . . . . . Allies | -11 -10 -10 -10 -9 -8 -7 -------- Run | Yrd Mat Min Exi Min Mat Fac Total Allies 5 | . . 1 3 . . 1 Largest Group 3 | . . 1 3 3 2 1 Highest-Rated Group 37 | . . 31 37 37 29 30 Highest-Rated Ally 31 | . . 31 21 21 21 30 Total Orders . | . . . . . . . Ally Attacks 26 | . . . . 8 7 11 Total Damage 362 | . . . . 116 69 177 Kills 5 | . . . . 3 1 1 Allies Corrupted . | . . . . . . . Allies Melted . | . . . . . . . Intel | -11 -10 -10 -10 -9 -8 -7 ------- Run | Yrd Mat Min Exi Min Mat Fac Robot Analysis Total . | . . . . . . . Derelict Logs Recovered 4 | . . 1 . 3 . . Drone Launches . | . . . . . . . Drone Recoveries . | . . . . . . . Exploration | -11 -10 -10 -10 -9 -8 -7 ------------- Run | Yrd Mat Min Exi Min Mat Fac Turns Passed 11138 | 65 2488 610 1077 1184 2251 3463 Spaces Moved 5702 | 45 1139 263 764 794 1150 1547 Core 7 | 7 . . . . . . Treads 697 | . 362 . . . 335 . Legs 497 | 38 459 . . . . . Wheels 4501 | . 318 263 764 794 815 1547 Hover . | . . . . . . . Flight . | . . . . . . . Fastest Speed 50 | 50 105 135 135 140 107 108 Average Speed 146 | 109 190 135 138 140 152 119 Slowest Speed 480 | 120 320 135 140 140 480 145 Overloaded Moves . | . . . . . . . Propulsion Burnouts . | . . . . . . . Robots Hopped . | . . . . . . . Cave-ins Triggered . | . . . . . . . Exploration Rate (%) 64 | 5 98 49 91 93 72 41 Regions Visited 6 Branch Regions 3 Pre-discovered Areas 3 | . . . 1 2 . . Known Exits Taken . | . . . . . . . Unknown Exits Taken 6 | 1 1 1 1 1 1 . Scrap Searched 3 | . . 1 . 2 . . Spaces Dug 2 | . . . . . 2 . Terrain Destroyed 153 | . . 22 4 34 65 28 Melee 2 | . . . . . 2 . Projectile 50 | . . . . . 22 28 AOE 101 | . . 22 4 34 41 . Terrain Rammed . | . . . . . . . Walls Destroyed . | . . . . . . . Machines Disabled . | . . . . . . . Actions | -11 -10 -10 -10 -9 -8 -7 --------- Run | Yrd Mat Min Exi Min Mat Fac Total 7828 | 60 1367 500 782 860 1432 2827 Wait 1450 | . 120 221 . 52 77 980 Move 5696 | 44 1138 262 763 793 1149 1547 Hop . | . . . . . . . Pick Up 115 | 10 30 5 4 4 25 37 Fast Attach 12 | 1 . . . . 8 3 Attach 50 | 5 4 1 . . 13 27 Detach 2 | . . . . . 2 . Swap 47 | . 8 5 1 . 18 15 Drop 69 | . 11 . 3 5 28 22 Fire 271 | . 56 6 1 6 109 93 Melee 103 | . . . . . 3 100 Ram . | . . . . . . . Kick . | . . . . . . . Crush . | . . . . . . . Escape Stasis . | . . . . . . . Rewire 13 | . . . 10 . . 3 Trap . | . . . . . . . Miscellaneous . | . . . . . . . Route ------- -11/Scrapyard -10/Materials (discovered 5 exits: [*Mat x3] / *Min / [*Sub]) -10/Mines (discovered 2 exits: *Exi / [*Sub]) -10/Exiles (discovered 2 exits: *Min x2) -9/Mines (discovered 2 exits: *Mat x2) -8/Materials -7/Factory (discovered 5 exits: [*Fac x2] / *Sto / [*Low x2]) History --------- Turn | Location | Event 20 | -11/Scrapyard | Discovered new exit (range 15) 66 | -11/Scrapyard | Entered Materials 309 | -10/Materials | Build established: Mutant 480 | -10/Materials | Discovered new exit (range 13) 840 | -10/Materials | Discovered new exit (range 9) 926 | -10/Materials | Core integrity fell below 50% 928 | -10/Materials | Lost 3 parts (1n2w) 1213 | -10/Materials | Discovered new exit (range 12) 1612 | -10/Materials | Discovered new exit (range 11) 1754 | -10/Materials | Discovered new exit (range 7) 2554 | -10/Materials | Entered Mines 2590 | -10/Mines | Received a Mining Laser from a helpful Derelict 2794 | -10/Mines | Discovered new exit (range 5) 2874 | -10/Mines | Met a Derelict shopkeep closing up shop 3033 | -10/Mines | Core integrity fell below 20% 3154 | -10/Mines | Deemed a non-threat by the Exiles lab entrance 3156 | -10/Mines | Discovered new exit (range 5) 3164 | -10/Mines | Entered Exiles 3164 | -10/Exiles | Found Exiles lab destroyed 3183 | -10/Exiles | Discovered new exit (range 15) 3361 | -10/Exiles | Learned location of Zion (-6) 4219 | -10/Exiles | Discovered new exit (range 14) 4241 | -10/Exiles | Entered Mines 4241 | -9/Mines | Accompanied by 3 allies 4253 | -9/Mines | Met a Derelict bent on vengeance 4376 | -9/Mines | Learned Materials terminal intel 4567 | -9/Mines | Discovered new exit (range 13) 4623 | -9/Mines | Found a damaged Exp. Sensor Array with a note attached 4628 | -9/Mines | Found Prototype Device 4712 | -9/Mines | Discovered new exit (range 11) 4832 | -9/Mines | A weapon hastily lodged in a ceiling crevice suddenly fell to the ground 5245 | -9/Mines | Found the Drone Emporium 5425 | -9/Mines | Entered Materials 5425 | -8/Materials | Accompanied by 2 allies 5425 | -8/Materials | Evolved 4 slots: Propulsion x2, Utility x2 5426 | -8/Materials | Loaded intel: 12 terminal locations 5429 | -8/Materials | Identified Exp. Sensor Array 6594 | -8/Materials | Build established: Scavenger-Mutant 6926 | -8/Materials | Core integrity fell below 50% 6985 | -8/Materials | Lost 3 parts (2p1n) 7106 | -8/Materials | Discovered new exit (range 14) 7114 | -8/Materials | Build established: Mutant 7676 | -8/Materials | Entered Factory 7676 | -7/Factory | Evolved 2 slots: Utility x1, Weapon x1 7677 | -7/Factory | Identified exit to Storage 7714 | -7/Factory | Discovered new exit (range 15) 8006 | -7/Factory | Build established: Gunner 8513 | -7/Factory | Lost 7 parts (1p2n3u1w) 8517 | -7/Factory | Destroyed 7 combat bots 8830 | -7/Factory | Fabricated Arm. Huge Wheel (x2) 9100 | -7/Factory | Discovered new exit (range 8) 9167 | -7/Factory | Fabricated Microactuators? 9989 | -7/Factory | Fabricated Actuator Array? 10177 | -7/Factory | Build established: Gladiator 10326 | -7/Factory | Garrison activated, responded to threat 10389 | -7/Factory | System corruption reached 10% 10424 | -7/Factory | Lost 3 parts (3u) 10637 | -7/Factory | Core integrity fell below 50% 10753 | -7/Factory | Discovered new exit (range 9) 10876 | -7/Factory | First assault squad dispatched 10982 | -7/Factory | Discovered new exit (range 5) 11075 | -7/Factory | Garrison activated, responded to threat 11104 | -7/Factory | Core integrity fell below 20% 11139 | -7/Factory | Destroyed by G-47 Trooper with Particle Gun Last Messages --------------- 11125_ Chainsword follow-up attack on G-47 Trooper. 11125_ K-01 Serf collects debris. 11127_ G-47 Trooper knocked back. 11130_ IP